fUST/lending_fUST_20250221
["ID","MTS","AMOUNT","RATE_DAILY","PERIOD"]
[353813784,1740073856383,-914.36,0.00013945,2]
[353813785,1740073856392,-500.0,0.00013945,2]
[353813786,1740073856402,-54606.58,0.00013945,2]
[353813787,1740073856412,-8871.46,0.00013945,2]
[353813788,1740073856422,-500.0,0.00013945,2]
[353813789,1740073856431,-563.01843799,0.00013945,2]
[353813790,1740073856440,-500.0,0.00013945,2]
[353813791,1740073856450,-21675.15,0.00013945,2]
[353813792,1740073856459,-3052.92,0.00013945,2]
[353813793,1740073856469,-1109.44,0.00013945,2]
[353813794,1740073856479,-500.0,0.00013945,2]
[353813795,1740073856488,-500.0,0.00013945,2]
[353813796,1740073856498,-521.88774525,0.00013945,2]
[353813797,1740073856507,-500.0,0.00013945,2]
[353813798,1740073856518,-1579.4,0.00013945,2]
[353813799,1740073856528,-1464.48,0.00013945,2]
[353813800,1740073856537,-1558.03,0.00013945,2]
[353813801,1740073856547,-5308.61,0.00013945,2]
[353813802,1740073856557,-4690.74,0.00013945,2]
[353813803,1740073856567,-500.0,0.00013945,2]
[353813804,1740073856576,-959.95,0.00013945,2]
[353813805,1740073856587,-2939.67,0.00013945,2]
[353813806,1740073856596,-659.98,0.00013945,2]
[353813807,1740073856606,-500.0,0.00013945,2]
[353813808,1740073856615,-2234.74,0.00013945,2]
[353813809,1740073856624,-500.0,0.00013945,2]
[353813810,1740073856633,-500.0,0.00013945,2]
[353813811,1740073856643,-500.0,0.00013945,2]
[353813812,1740073856653,-528.1,0.00013945,2]
[353813813,1740073856663,-500.0,0.00013945,2]
[353813814,1740073856673,-500.0,0.00013945,2]
[353813815,1740073856682,-500.0,0.00013945,2]
[353813816,1740073856691,-2986.58,0.00013945,2]
[353813817,1740073856701,-1842.99,0.00013945,2]
[353813818,1740073856711,-729.17,0.00013945,2]
[353813819,1740073856721,-500.0,0.00013945,2]
[353813820,1740073856730,-500.0,0.00013945,2]
[353813821,1740073856739,-2147.03,0.00013945,2]
[353813822,1740073856748,-500.0,0.00013945,2]
[353813823,1740073856758,-500.0,0.00013945,2]
[353813824,1740073856767,-500.0,0.00013945,2]
[353813825,1740073856777,-500.0,0.00013945,2]
[353813826,1740073856787,-580.33,0.00013945,2]
[353813827,1740073856797,-500.0,0.00013945,2]
[353813828,1740073856807,-500.0,0.00013945,2]
[353813829,1740073856818,-7012.26,0.00013945,2]
[353813830,1740073856829,-683.38,0.00013945,2]
[353813831,1740073856839,-1276.52,0.00013945,2]
[353813832,1740073856848,-500.0,0.00013945,2]
[353813833,1740073856859,-500.0,0.00013945,2]
[353813834,1740073856868,-500.0,0.00013945,2]
[353813835,1740073856878,-500.0,0.00013945,2]
[353813836,1740073856887,-500.0,0.00013945,2]
[353813837,1740073856898,-1003.21,0.00013945,2]
[353813838,1740073856909,-500.0,0.00013945,2]
[353813839,1740073856919,-726.98,0.00013945,2]
[353813840,1740073856928,-500.0,0.00013945,2]
[353813841,1740073856937,-500.0,0.00013945,2]
[353813842,1740073856947,-1848.27,0.00013945,2]
[353813843,1740073856956,-500.00569627,0.00013945,2]
[353813844,1740073856966,-500.0,0.00013945,2]
[353813845,1740073856975,-581.49,0.00013945,2]
[353813846,1740073856985,-979.57,0.00013945,2]
[353813847,1740073856994,-593.07,0.00013945,2]
[353813848,1740073857004,-721.17,0.00013945,2]
[353813849,1740073857013,-500.0,0.00013945,2]
[353813850,1740073857023,-11665.38,0.00013945,2]
[353813851,1740073857032,-1020.454338,0.0001396,2]
[353813852,1740073857120,-150.3,0.00013972,2]
[353813853,1740073857131,-500.0,0.00013972,2]
[353813854,1740073857141,-150.2,0.00013972,2]
[353813855,1740073857151,-150.3,0.00013972,2]
[353813856,1740073857160,-150.2,0.00013972,2]
[353813857,1740073857173,-150.3,0.00013972,2]
[353813858,1740073857182,-150.38812417,0.00013972,2]
[353813859,1740073857192,-500.0,0.00013972,2]
[353813860,1740073857202,-650.3,0.00013972,2]
[353813861,1740073857212,-938.84425901,0.00013972,2]
[353813862,1740073857222,-150.3,0.00013972,2]
[353813863,1740073857232,-751.0,0.00013972,2]
[353813864,1740073857242,-650.3,0.00013972,2]
[353813865,1740073857251,-501.0,0.00013972,2]
[353813866,1740073857261,-748.04382557,0.00013972,2]
[353813867,1740073857270,-150.2,0.00013972,2]
[353813868,1740073857280,-500.0,0.00013972,2]
[353813869,1740073857290,-1483.19457899,0.00013976,2]
[353813870,1740073857299,-1001.52193153,0.00013988,4]
[353813871,1740073857309,-1000.0,0.00014,14]
[353813872,1740073857319,-500.0,0.00014,2]
[353813873,1740073857329,-1000.000001,0.00014,2]
[353813874,1740073857339,-326.51772412,0.00014,14]
[353813875,1740073857349,-500.0,0.00014027,2]
[353813876,1740073857358,-500.0,0.00014027,2]
[353813877,1740073857368,-500.0,0.00014027,2]
[353813878,1740073857379,-500.0,0.00014027,2]
[353813879,1740073857389,-500.0,0.00014027,2]
[353813880,1740073857399,-500.0,0.00014027,2]
[353813881,1740073857410,-500.0,0.00014027,2]
[353813882,1740073857420,-500.0,0.00014027,2]
[353813883,1740073857430,-500.0,0.00014027,2]
[353813884,1740073857439,-500.0,0.00014027,2]
[353813885,1740073857449,-500.0,0.00014027,2]
[353813886,1740073857458,-500.0,0.00014027,2]
[353813887,1740073857468,-832.33,0.00014027,2]
[353813888,1740073857478,-500.0,0.00014027,2]
[353813889,1740073857488,-619.72482855,0.00014027,2]
[353813890,1740073857498,-500.0,0.00014027,2]
[353813891,1740073857507,-500.0,0.00014027,2]
[353813892,1740073857517,-342.76402241,0.00014027,2]
[353813893,1740073857527,-523.18,0.00014027,2]
[353813894,1740073857536,-500.0,0.00014027,2]
[353813895,1740073857546,-500.0,0.00014027,2]
[353813896,1740073857555,-500.0,0.00014027,2]
[353813897,1740073857565,-734.48,0.00014027,2]
[353813898,1740073857575,-500.0,0.00014027,2]
[353813899,1740073857584,-500.0,0.00014027,2]
[353813900,1740073857594,-500.0,0.00014027,2]
[353813901,1740073857604,-500.0,0.00014027,2]
[353813902,1740073857614,-500.0,0.00014027,2]
[353813903,1740073857623,-500.0,0.00014027,2]
[353813904,1740073857633,-512.76,0.00014027,2]
[353813905,1740073857643,-500.0,0.00014027,2]
[353813906,1740073857652,-500.0,0.00014027,2]
[353813907,1740073857662,-2330.69,0.00014027,2]
[353813908,1740073857671,-569.05175497,0.00014027,2]
[353813909,1740073857681,-2298.24,0.00014027,2]
[353813910,1740073857690,-959.04,0.00014027,2]
[353813911,1740073857700,-500.0,0.00014027,2]
[353813912,1740073857709,-500.0,0.00014027,2]
[353813913,1740073857719,-500.0,0.00014027,2]
[353813914,1740073857729,-500.0,0.00014027,2]
[353813915,1740073857738,-500.0,0.00014027,2]
[353813916,1740073857747,-151.75449317,0.00014027,2]
[353813917,1740073857757,-500.0,0.00014027,2]
[353813918,1740073857767,-500.0,0.00014027,2]
[353813919,1740073857777,-500.0,0.00014027,2]
[353813920,1740073857786,-1194.47,0.00014027,2]
[353813921,1740073857796,-500.0,0.00014027,2]
[353813922,1740073857805,-500.0,0.00014027,2]
[353813923,1740073857815,-500.0,0.00014027,2]
[353813924,1740073857827,-500.0,0.00014027,2]
[353813925,1740073857837,-500.0,0.00014027,2]
[353813926,1740073857847,-500.0,0.00014027,2]
[353813927,1740073857856,-500.0,0.00014027,2]
[353813928,1740073857866,-500.0,0.00014027,2]
[353813929,1740073857880,-755.28,0.00014027,2]
[353813930,1740073857895,-500.0,0.00014027,2]
[353813931,1740073857905,-1977.01,0.00014027,2]
[353813932,1740073857914,-677.41,0.00014027,2]
[353813933,1740073857924,-503.24733582,0.00014027,2]
[353813934,1740073857932,-500.0,0.00014027,2]
[353813935,1740073857942,-500.0,0.00014027,2]
[353813936,1740073857951,-1437.0,0.00014027,2]
[353813937,1740073857961,-500.0,0.00014027,2]
[353813938,1740073857970,-500.0,0.00014027,2]
[353813939,1740073857980,-529.2,0.00014027,2]
[353813940,1740073857990,-905.36,0.00014027,2]
[353813941,1740073858000,-500.0,0.00014027,2]
[353813942,1740073858009,-956.16,0.00014027,2]
[353813943,1740073858019,-461.56442783,0.00014027,2]
[353813944,1740073858028,-500.0,0.00014027,2]
[353813945,1740073858037,-500.0,0.00014027,2]
[353813946,1740073858047,-542.464649,0.00014027,2]
[353813947,1740073858057,-934.68,0.00014027,2]
[353813948,1740073858067,-500.0,0.00014027,2]
[353813949,1740073858076,-500.0,0.00014027,2]
[353813950,1740073858086,-841.19,0.00014027,2]
[353813951,1740073858095,-806.4,0.00014027,2]
[353813952,1740073858105,-500.0,0.00014027,2]
[353813953,1740073858114,-500.0,0.00014027,2]
[353813954,1740073858124,-500.0,0.00014027,2]
[353813955,1740073858134,-500.0,0.00014027,2]
[353813956,1740073858143,-500.0,0.00014027,2]
[353813957,1740073858152,-500.0,0.00014027,2]
[353813958,1740073858161,-500.0,0.00014027,2]
[353813959,1740073858171,-500.0,0.00014027,2]
[353813960,1740073858181,-500.0,0.00014027,2]
[353813961,1740073858190,-611.15,0.00014027,2]
[353813962,1740073858199,-500.0,0.00014027,2]
[353813963,1740073858209,-500.0,0.00014027,2]
[353813964,1740073858218,-1403.35,0.00014027,2]
[353813965,1740073858227,-673.31,0.00014027,2]
[353813966,1740073858237,-500.0,0.00014027,2]
[353813967,1740073858247,-500.0,0.00014027,2]
[353813968,1740073858256,-500.0,0.00014027,2]
[353813969,1740073858265,-500.0,0.00014027,2]
[353813970,1740073858275,-500.0,0.00014027,2]
[353813971,1740073858285,-500.0,0.00014027,2]
[353813972,1740073858295,-1144.48,0.00014027,2]
[353813973,1740073858304,-500.0,0.00014027,2]
[353813974,1740073858314,-500.0,0.00014027,2]
[353813975,1740073858326,-500.0,0.00014027,2]
[353813976,1740073858344,-500.0,0.00014027,2]
[353813977,1740073858353,-500.0,0.00014027,2]
[353813978,1740073858362,-643.25,0.00014027,2]
[353813979,1740073858373,-1681.47,0.00014027,2]
[353813980,1740073858382,-500.0,0.00014027,2]
[353813981,1740073858392,-500.0,0.00014027,2]
[353813982,1740073858401,-500.0,0.00014027,2]
[353813983,1740073858411,-922.86,0.00014027,2]
[353813984,1740073858421,-500.0,0.00014027,2]
[353813985,1740073858430,-500.0,0.00014027,2]
[353813986,1740073858440,-500.0,0.00014027,2]
[353813987,1740073858449,-500.0,0.00014027,2]
[353813988,1740073858459,-940.41,0.00014027,2]
[353813989,1740073858469,-319.3379246,0.00014027,2]
[353813990,1740073858478,-500.0,0.00014027,2]
[353813991,1740073858488,-500.0,0.00014027,2]
[353813992,1740073858497,-431.99885466,0.00014027,2]
[353813993,1740073858507,-500.0,0.00014027,2]
[353813994,1740073858516,-500.0,0.00014027,2]
[353813995,1740073858603,-500.0,0.00014027,2]
[353813996,1740073858613,-500.0,0.00014027,2]
[353813997,1740073858622,-626.93,0.00014027,2]
[353813998,1740073858632,-500.0,0.00014027,2]
[353813999,1740073858642,-500.0,0.00014027,2]
[353814000,1740073858652,-4390.15,0.00014027,2]
[353814001,1740073858661,-500.0,0.00014027,2]
[353814002,1740073858671,-20169.72,0.00014027,2]
[353814003,1740073858680,-500.0,0.00014027,2]
[353814004,1740073858689,-2549.7,0.00014027,2]
[353814005,1740073858698,-500.0,0.00014027,2]
[353814006,1740073858708,-772.27,0.00014027,2]
[353814007,1740073858718,-2054.69,0.00014027,2]
[353814008,1740073858727,-702.96,0.00014027,2]
[353814009,1740073858737,-2804.34,0.00014027,2]
[353814010,1740073858746,-500.0,0.00014027,2]
[353814011,1740073858756,-500.0,0.00014027,2]
[353814012,1740073858766,-500.0,0.00014027,2]
[353814013,1740073858775,-500.0,0.00014027,2]
[353814014,1740073858784,-500.0,0.00014027,2]
[353814015,1740073858794,-346.66462198,0.00014027,2]
[353814016,1740073858804,-705.82,0.00014027,2]
[353814017,1740073858813,-903.32,0.00014027,2]
[353814018,1740073858829,-500.0,0.00014027,2]
[353814019,1740073858839,-500.0,0.00014027,2]
[353814020,1740073858849,-606.25909632,0.00014027,2]
[353814021,1740073858858,-500.0,0.00014027,2]
[353814022,1740073858867,-4653.4,0.00014027,2]
[353814023,1740073858876,-3239.14,0.00014027,2]
[353814024,1740073858886,-1279.78,0.00014027,2]
[353814025,1740073858895,-500.0,0.00014027,2]
[353814026,1740073858906,-1565.09,0.00014027,2]
[353814027,1740073858915,-500.0,0.00014027,2]
[353814028,1740073858924,-610.99,0.00014027,2]
[353814029,1740073858933,-500.0,0.00014027,2]
[353814030,1740073858943,-4201.2,0.00014027,2]
[353814031,1740073858952,-914.36,0.00014027,2]
[353814032,1740073858962,-500.0,0.00014027,2]
[353814033,1740073858972,-54606.58,0.00014027,2]
[353814034,1740073858981,-8871.46,0.00014027,2]
[353814035,1740073858991,-500.0,0.00014027,2]
[353814036,1740073859001,-500.0,0.00014027,2]
[353814037,1740073859011,-21675.15,0.00014027,2]
[353814038,1740073859020,-3052.92,0.00014027,2]
[353814039,1740073859030,-1109.44,0.00014027,2]
[353814040,1740073859040,-500.0,0.00014027,2]
[353814041,1740073859050,-500.0,0.00014027,2]
[353814042,1740073859061,-500.0,0.00014027,2]
[353814043,1740073859071,-1579.4,0.00014027,2]
[353814044,1740073859081,-1464.48,0.00014027,2]
[353814045,1740073859091,-1558.03,0.00014027,2]
[353814046,1740073859101,-5308.61,0.00014027,2]
[353814047,1740073859110,-4690.74,0.00014027,2]
[353814048,1740073859120,-494.41242389,0.00014027,2]
[353814049,1740073859130,-959.95,0.00014027,2]
[353814050,1740073859139,-2939.67,0.00014027,2]
[353814051,1740073859149,-659.98,0.00014027,2]
[353814052,1740073859159,-500.0,0.00014027,2]
[353814053,1740073859168,-2234.74,0.00014027,2]
[353814054,1740073859177,-500.0,0.00014027,2]
[353814055,1740073859186,-500.0,0.00014027,2]
[353814056,1740073859196,-528.1,0.00014027,2]
[353814057,1740073859205,-500.0,0.00014027,2]
[353814058,1740073859215,-130.850242,0.00014027,2]
[353814059,1740073859385,-369.149758,0.00014027,2]
[353814060,1740073859395,-500.0,0.00014027,2]
[353814061,1740073859406,-2986.58,0.00014027,2]
[353814062,1740073859415,-1842.99,0.00014027,2]
[353814063,1740073859425,-729.17,0.00014027,2]
[353814064,1740073859434,-500.0,0.00014027,2]
[353814065,1740073859444,-798.84224306,0.00014027,2]
[353814066,1740073859456,-1348.18775694,0.00014027,2]
[353814067,1740073859465,-500.0,0.00014027,2]
[353814068,1740073859474,-354.42581727,0.00014027,2]
[353814069,1740073859485,-145.57418273,0.00014027,2]
[353814070,1740073859495,-501.82936904,0.00014027,2]
[353814071,1740073859505,-500.0,0.00014027,2]
[353814072,1740073859515,-580.33,0.00014027,2]
[353814073,1740073859525,-503.0558322,0.00014027,2]
[353814074,1740073859535,-500.0,0.00014027,2]
[353814075,1740073859545,-7012.26,0.00014027,2]
[353814076,1740073859555,-683.38,0.00014027,2]
[353814077,1740073859565,-1276.52,0.00014027,2]
[353814078,1740073859575,-500.0,0.00014027,2]
[353814079,1740073859585,-500.0,0.00014027,2]
[353814080,1740073859595,-619.38371263,0.00014027,2]
[353814081,1740073859604,-500.0,0.00014027,2]
[353814082,1740073859613,-500.0,0.00014027,2]
[353814083,1740073859623,-1003.21,0.00014027,2]
[353814084,1740073859632,-500.0,0.00014027,2]
[353814085,1740073859642,-726.98,0.00014027,2]
[353814086,1740073859652,-500.0,0.00014027,2]
[353814087,1740073859661,-500.0,0.00014027,2]
[353814088,1740073859671,-1848.27,0.00014027,2]
[353814089,1740073859682,-500.0,0.00014027,2]
[353814090,1740073859691,-581.49,0.00014027,2]
[353814091,1740073859701,-593.07,0.00014027,2]
[353814092,1740073859711,-979.57,0.00014027,2]
[353814093,1740073859719,-721.17,0.00014027,2]
[353814094,1740073859728,-500.0,0.00014027,2]
[353814095,1740073859738,-8993.29041677,0.00014027,2]
[353814096,1740073859750,-448.71263582,0.00014027,2]
[353814097,1740073859846,-2223.37694741,0.00014027,2]
[353814098,1740073859856,-500.0,0.00014109,2]
[353814099,1740073859866,-500.0,0.00014109,2]
[353814100,1740073859876,-500.0,0.00014109,2]
[353814101,1740073859887,-187.41,0.00014109,2]
[353814102,1740073859897,-500.0,0.00014109,2]
[353814103,1740073859908,-500.0,0.00014109,2]
[353814104,1740073859918,-500.0,0.00014109,2]
[353814105,1740073859928,-500.0,0.00014109,2]
[353814106,1740073859938,-588.64550532,0.00014109,2]
[353814107,1740073859947,-500.0,0.00014109,2]
[353814108,1740073859957,-513.05805258,0.00014109,2]
[353814109,1740073859967,-832.33,0.00014109,2]
[353814110,1740073859977,-500.0,0.00014109,2]
[353814111,1740073859986,-500.0,0.00014109,2]
[353814112,1740073859997,-500.0,0.00014109,2]
[353814113,1740073860007,-523.18,0.00014109,2]
[353814114,1740073860017,-500.0,0.00014109,2]
[353814115,1740073860027,-500.0,0.00014109,2]
[353814116,1740073860037,-500.0,0.00014109,2]
[353814117,1740073860048,-734.48,0.00014109,2]
[353814118,1740073860059,-500.0,0.00014109,2]
[353814119,1740073860070,-500.0,0.00014109,2]
[353814120,1740073860080,-500.0,0.00014109,2]
[353814121,1740073860092,-500.0,0.00014109,2]
[353814122,1740073860102,-500.0,0.00014109,2]
[353814123,1740073860113,-500.0,0.00014109,2]
[353814124,1740073860124,-512.76,0.00014109,2]
[353814125,1740073860133,-540.41156699,0.00014109,2]
[353814126,1740073860143,-500.0,0.00014109,2]
[353814127,1740073860153,-2330.69,0.00014109,2]
[353814128,1740073860163,-2298.24,0.00014109,2]
[353814129,1740073860172,-959.04,0.00014109,2]
[353814130,1740073860182,-500.0,0.00014109,2]
[353814131,1740073860192,-500.0,0.00014109,2]
[353814132,1740073860202,-500.0,0.00014109,2]
[353814133,1740073860213,-500.0,0.00014109,2]
[353814134,1740073860223,-500.0,0.00014109,2]
[353814135,1740073860233,-451.9005205,0.00014109,2]
[353814136,1740073860243,-500.0,0.00014109,2]
[353814137,1740073860253,-500.0,0.00014109,2]
[353814138,1740073860263,-1194.47,0.00014109,2]
[353814139,1740073860273,-500.0,0.00014109,2]
[353814140,1740073860282,-500.0,0.00014109,2]
[353814141,1740073860292,-500.0,0.00014109,2]
[353814142,1740073860301,-500.0,0.00014109,2]
[353814143,1740073860311,-500.0,0.00014109,2]
[353814144,1740073860320,-500.0,0.00014109,2]
[353814145,1740073860330,-500.0,0.00014109,2]
[353814146,1740073860341,-500.0,0.00014109,2]
[353814147,1740073860350,-755.28,0.00014109,2]
[353814148,1740073860359,-1977.01,0.00014109,2]
[353814149,1740073860370,-677.41,0.00014109,2]
[353814150,1740073860380,-1437.0,0.00014109,2]
[353814151,1740073860390,-500.0,0.00014109,2]
[353814152,1740073860399,-500.0,0.00014109,2]
[353814153,1740073860409,-529.2,0.00014109,2]
[353814154,1740073860419,-905.36,0.00014109,2]
[353814155,1740073860429,-500.0,0.00014109,2]
[353814156,1740073860438,-956.16,0.00014109,2]
[353814157,1740073860448,-500.0,0.00014109,2]
[353814158,1740073860458,-500.0,0.00014109,2]
[353814159,1740073860467,-934.68,0.00014109,2]
[353814160,1740073860476,-500.0,0.00014109,2]
[353814161,1740073860486,-500.0,0.00014109,2]
[353814162,1740073860495,-841.19,0.00014109,2]
[353814163,1740073860506,-806.4,0.00014109,2]
[353814164,1740073860515,-500.0,0.00014109,2]
[353814165,1740073860525,-500.0,0.00014109,2]
[353814166,1740073860534,-500.0,0.00014109,2]
[353814167,1740073860544,-500.0,0.00014109,2]
[353814168,1740073860554,-500.0,0.00014109,2]
[353814169,1740073860564,-500.0,0.00014109,2]
[353814170,1740073860574,-500.0,0.00014109,2]
[353814171,1740073860583,-500.0,0.00014109,2]
[353814172,1740073860595,-500.0,0.00014109,2]
[353814173,1740073860605,-611.15,0.00014109,2]
[353814174,1740073860614,-357.69658312,0.00014109,2]
[353814175,1740073860624,-500.0,0.00014109,2]
[353814176,1740073860634,-1403.35,0.00014109,2]
[353814177,1740073860647,-673.31,0.00014109,2]
[353814178,1740073860656,-500.0,0.00014109,2]
[353814179,1740073860666,-500.0,0.00014109,2]
[353814180,1740073860675,-500.0,0.00014109,2]
[353814181,1740073860684,-500.0,0.00014109,2]
[353814182,1740073860694,-500.0,0.00014109,2]
[353814183,1740073860704,-500.0,0.00014109,2]
[353814184,1740073860713,-1144.48,0.00014109,2]
[353814185,1740073860723,-500.0,0.00014109,2]
[353814186,1740073860732,-500.0,0.00014109,2]
[353814187,1740073860742,-500.0,0.00014109,2]
[353814188,1740073860751,-500.0,0.00014109,2]
[353814189,1740073860761,-500.0,0.00014109,2]
[353814190,1740073860770,-643.25,0.00014109,2]
[353814191,1740073860780,-1681.47,0.00014109,2]
[353814192,1740073860789,-214.43335683,0.00014109,2]
[353814193,1740073860799,-500.0,0.00014109,2]
[353814194,1740073860808,-922.86,0.00014109,2]
[353814195,1740073860819,-500.0,0.00014109,2]
[353814196,1740073860830,-500.0,0.00014109,2]
[353814197,1740073860840,-500.0,0.00014109,2]
[353814198,1740073860850,-500.0,0.00014109,2]
[353814199,1740073860860,-940.41,0.00014109,2]
[353814200,1740073860871,-500.0,0.00014109,2]
[353814201,1740073860880,-500.0,0.00014109,2]
[353814202,1740073860890,-500.0,0.00014109,2]
[353814203,1740073860901,-500.0,0.00014109,2]
[353814204,1740073860911,-500.0,0.00014109,2]
[353814205,1740073860920,-500.0,0.00014109,2]
[353814206,1740073860929,-626.93,0.00014109,2]
[353814207,1740073860939,-500.0,0.00014109,2]
[353814208,1740073860949,-500.0,0.00014109,2]
[353814209,1740073860959,-4390.15,0.00014109,2]
[353814210,1740073860968,-500.0,0.00014109,2]
[353814211,1740073860978,-20169.72,0.00014109,2]
[353814212,1740073860988,-500.0,0.00014109,2]
[353814213,1740073860998,-2046.81449877,0.00014109,2]
[353814214,1740073861237,-500.0,0.00013698,2]
[353814215,1740073861247,-159.29,0.000137,2]
[353814216,1740073861256,-159.29,0.000137,2]
[353814217,1740073861265,-159.29,0.000137,2]
[353814218,1740073861274,-159.29,0.000137,2]
[353814219,1740073861283,-159.29,0.000137,2]
[353814220,1740073861294,-159.29,0.000137,2]
[353814221,1740073861311,-159.29,0.000137,2]
[353814222,1740073861323,-159.29,0.000137,2]
[353814223,1740073861332,-159.29,0.000137,2]
[353814224,1740073861345,-159.29,0.000137,2]
[353814225,1740073861354,-1507.133696,0.00013769,2]
[353814226,1740073861366,-11543.65285025,0.00013769,2]
[353814227,1740073861376,-502.88550123,0.00014109,2]
[353814228,1740073861386,-506.5,0.00014109,2]
[353814229,1740073861395,-772.27,0.00014109,2]
[353814230,1740073861404,-2054.69,0.00014109,2]
[353814231,1740073861413,-702.96,0.00014109,2]
[353814232,1740073861421,-2804.34,0.00014109,2]
[353814233,1740073861430,-500.0,0.00014109,2]
[353814234,1740073861439,-500.0,0.00014109,2]
[353814235,1740073861449,-500.0,0.00014109,2]
[353814236,1740073861458,-500.0,0.00014109,2]
[353814237,1740073861467,-500.0,0.00014109,2]
[353814238,1740073861477,-705.82,0.00014109,2]
[353814239,1740073861486,-903.32,0.00014109,2]
[353814240,1740073861495,-500.0,0.00014109,2]
[353814241,1740073861504,-500.0,0.00014109,2]
[353814242,1740073861513,-500.0,0.00014109,2]
[353814243,1740073861523,-4653.4,0.00014109,2]
[353814244,1740073861532,-3239.14,0.00014109,2]
[353814245,1740073861541,-1279.78,0.00014109,2]
[353814246,1740073861551,-1565.09,0.00014109,2]
[353814247,1740073861561,-610.99,0.00014109,2]
[353814248,1740073861570,-500.0,0.00014109,2]
[353814249,1740073861580,-4201.2,0.00014109,2]
[353814250,1740073861591,-914.36,0.00014109,2]
[353814251,1740073861600,-337.76,0.00014109,2]
[353814252,1740073861609,-3492.5011249,0.00014109,2]
[353814253,1740073861630,-398.15093894,0.00014109,2]
[353814254,1740073861641,-1814.33275214,0.00014109,2]
[353814255,1740073861846,-159.29,0.000137,2]
[353814256,1740073861859,-159.29,0.000137,2]
[353814257,1740073861881,-159.29,0.000137,2]
[353814258,1740073861896,-159.29,0.000137,2]
[353814259,1740073861912,-159.29,0.000137,2]
[353814260,1740073861925,-159.29,0.000137,2]
[353814261,1740073861940,-4878.9591942,0.00014109,2]
[353814262,1740073861958,-564.24,0.00014109,2]
[353814263,1740073861976,-43458.39598982,0.00014109,2]
[353814264,1740073861991,-8871.46,0.00014109,2]
[353814265,1740073862005,-500.0,0.00014109,2]
[353814266,1740073862019,-500.0,0.00014109,2]
[353814267,1740073862034,-21675.15,0.00014109,2]
[353814268,1740073862048,-3052.92,0.00014109,2]
[353814269,1740073862063,-1109.44,0.00014109,2]
[353814270,1740073862077,-500.0,0.00014109,2]
[353814271,1740073862092,-500.0,0.00014109,2]
[353814272,1740073862106,-500.0,0.00014109,2]
[353814273,1740073862120,-1579.4,0.00014109,2]
[353814274,1740073862136,-1464.48,0.00014109,2]
[353814275,1740073862150,-1558.03,0.00014109,2]
[353814276,1740073862162,-5308.61,0.00014109,2]
[353814277,1740073862171,-4690.74,0.00014109,2]
[353814278,1740073862181,-959.95,0.00014109,2]
[353814279,1740073862190,-2939.67,0.00014109,2]
[353814280,1740073862200,-659.98,0.00014109,2]
[353814281,1740073862210,-500.0,0.00014109,2]
[353814282,1740073862220,-2234.74,0.00014109,2]
[353814283,1740073862230,-500.0,0.00014109,2]